[Event "Titled Tuesday Blitz July 20 2021"]
[White "Vyatkin, Dmitry"]
[Black "Orantes Taboada, Francisco"]
[WhiteFideId "4171900"]
[BlackFideId "22274758"]
[WhiteElo "2279"]
[BlackElo "2073"]
[Result "1-0"]
[Round "11"]
[TimeControl "180+1"]
[Date "2021.07.21"]
[WhiteClock "0:00:08"]
[BlackClock "0:00:25"]

1. d4 {[%clk 0:02:59]}  Nf6 {[%clk 0:02:59]} 2. c4 {[%clk 0:02:59]}  g6 {[%clk 0:03:00]} 3. g3 {[%clk 0:02:59]}  Bg7 {[%clk 0:03:00]} 4. Bg2 {[%clk 0:02:59]}  d5 {[%clk 0:03:00]} 5. cxd5 {[%clk 0:02:58]}  Nxd5 {[%clk 0:03:01]} 6. Nc3 {[%clk 0:02:59]}  Nb6 {[%clk 0:03:02]} 7. Nf3 {[%clk 0:02:58]}  O-O {[%clk 0:03:03]} 8. O-O {[%clk 0:02:58]}  Nc6 {[%clk 0:03:03]} 9. e3 {[%clk 0:02:59]}  Re8 {[%clk 0:03:02]} 10. h3 {[%clk 0:02:48]}  a5 {[%clk 0:03:00]} 11. a3 {[%clk 0:02:47]}  e5 {[%clk 0:02:56]} 12. d5 {[%clk 0:02:47]}  Ne7 {[%clk 0:02:56]} 13. e4 {[%clk 0:02:47]}  f5 {[%clk 0:02:51]} 14. Ng5 {[%clk 0:02:21]}  h6 {[%clk 0:02:41]} 15. Ne6 {[%clk 0:02:13]}  Bxe6 {[%clk 0:02:40]} 16. dxe6 {[%clk 0:02:14]}  Qc8 {[%clk 0:02:33]} 17. Nd5 {[%clk 0:01:58]}  Nbxd5 {[%clk 0:02:17]} 18. exd5 {[%clk 0:01:58]}  Rd8 {[%clk 0:02:17]} 19. Qb3 {[%clk 0:01:47]}  e4 {[%clk 0:02:12]} 20. Rd1 {[%clk 0:01:47]}  Ra6 {[%clk 0:02:10]} 21. Bf4 {[%clk 0:01:37]}  Rb6 {[%clk 0:02:08]} 22. Qc4 {[%clk 0:01:35]}  Rxb2 {[%clk 0:01:53]} 23. Bxc7 {[%clk 0:01:13]}  Be5 {[%clk 0:01:18]} 24. Rac1 {[%clk 0:00:41]}  Bxc7 {[%clk 0:01:13]} 25. Qxc7 {[%clk 0:00:36]}  Qxc7 {[%clk 0:01:13]} 26. Rxc7 {[%clk 0:00:36]}  Rxd5 {[%clk 0:01:14]} 27. Rxd5 {[%clk 0:00:33]}  Nxd5 {[%clk 0:01:14]} 28. Rd7 {[%clk 0:00:33]}  Rb1+ {[%clk 0:01:06]} 29. Bf1 {[%clk 0:00:30]}  Nf6 {[%clk 0:01:04]} 30. Rd8+ {[%clk 0:00:29]}  Kg7 {[%clk 0:01:04]} 31. Kg2 {[%clk 0:00:29]}  Rb6 {[%clk 0:01:02]} 32. Bc4 {[%clk 0:00:28]}  Rc6 {[%clk 0:01:01]} 33. Ba2 {[%clk 0:00:26]}  Rc2 {[%clk 0:00:58]} 34. Bb3 {[%clk 0:00:26]}  Rc3 {[%clk 0:00:58]} 35. Ba2 {[%clk 0:00:16]}  Rxa3 {[%clk 0:00:56]} 36. Bc4 {[%clk 0:00:15]}  Rc3 {[%clk 0:00:56]} 37. Bb5 {[%clk 0:00:16]}  Rc7 {[%clk 0:00:50]} 38. Rd7+ {[%clk 0:00:12]}  Rxd7 {[%clk 0:00:42]} 39. exd7 {[%clk 0:00:12]}  Nxd7 {[%clk 0:00:42]} 40. Bxd7 {[%clk 0:00:12]}  Kf6 {[%clk 0:00:43]} 41. Kf1 {[%clk 0:00:12]}  Ke5 {[%clk 0:00:43]} 42. Ke2 {[%clk 0:00:12]}  Kd4 {[%clk 0:00:44]} 43. Kd2 {[%clk 0:00:08]}  g5 {[%clk 0:00:43]} 44. Bxf5 {[%clk 0:00:07]}  b5 {[%clk 0:00:42]} 45. Bd7 {[%clk 0:00:07]}  b4 {[%clk 0:00:41]} 46. Ba4 {[%clk 0:00:07]}  h5 {[%clk 0:00:41]} 47. Bb3 {[%clk 0:00:07]}  h4 {[%clk 0:00:41]} 48. gxh4 {[%clk 0:00:04]}  gxh4 {[%clk 0:00:42]} 49. Bc2 {[%clk 0:00:03]}  Kc4 {[%clk 0:00:38]} 50. Bxe4 {[%clk 0:00:03]}  b3 {[%clk 0:00:39]} 51. Bg6 {[%clk 0:00:02]}  a4 {[%clk 0:00:38]} 52. Bf7+ {[%clk 0:00:02]}  Kb4 {[%clk 0:00:38]} 53. Be6 {[%clk 0:00:02]}  a3 {[%clk 0:00:38]} 54. Kc1 {[%clk 0:00:02]}  Kc3 {[%clk 0:00:27]} 55. Kb1 {[%clk 0:00:03]}  a2+ {[%clk 0:00:20]} 56. Ka1 {[%clk 0:00:03]}  Kc2 {[%clk 0:00:20]} 57. Bf5+ {[%clk 0:00:03]}  Kc1 {[%clk 0:00:20]} 58. Bg6 {[%clk 0:00:02]}  Kd2 {[%clk 0:00:17]} 59. f4 {[%clk 0:00:02]}  Kc1 {[%clk 0:00:12]} 60. Be4 {[%clk 0:00:02]}  Kd2 {[%clk 0:00:12]} 61. f5 {[%clk 0:00:02]}  Ke3 {[%clk 0:00:12]} 62. Bd5 {[%clk 0:00:02]}  Kd4 {[%clk 0:00:09]} 63. Bxb3 {[%clk 0:00:02]}  Ke5 {[%clk 0:00:09]} 64. Be6 {[%clk 0:00:01]}  Kf6 {[%clk 0:00:10]} 65. Kxa2 {[%clk 0:00:01]}  Kg5 {[%clk 0:00:10]} 66. Kb3 {[%clk 0:00:02]}  Kf6 {[%clk 0:00:11]} 67. Kb4 {[%clk 0:00:02]}  Kg5 {[%clk 0:00:12]} 68. Kb5 {[%clk 0:00:03]}  Kf6 {[%clk 0:00:13]} 69. Kc6 {[%clk 0:00:04]}  Kg5 {[%clk 0:00:14]} 70. Kd6 {[%clk 0:00:04]}  Kf6 {[%clk 0:00:15]} 71. Kd5 {[%clk 0:00:05]}  Kg5 {[%clk 0:00:15]} 72. Ke5 {[%clk 0:00:06]}  Kh5 {[%clk 0:00:16]} 73. f6 {[%clk 0:00:06]}  Kh6 {[%clk 0:00:17]} 74. f7 {[%clk 0:00:07]}  Kh7 {[%clk 0:00:18]} 75. Kd6 {[%clk 0:00:07]}  Kg6 {[%clk 0:00:19]} 76. Ke7 {[%clk 0:00:08]}  Kh7 {[%clk 0:00:19]} 77. f8=R {[%clk 0:00:07]}  Kg6 {[%clk 0:00:20]} 78. Rf7 {[%clk 0:00:07]}  Kh5 {[%clk 0:00:21]} 79. Rf5+ {[%clk 0:00:07]}  Kg6 {[%clk 0:00:21]} 80. Bd7 {[%clk 0:00:07]}  Kh6 {[%clk 0:00:22]} 81. Kf6 {[%clk 0:00:07]}  Kh7 {[%clk 0:00:23]} 82. Rh5+ {[%clk 0:00:08]}  Kg8 {[%clk 0:00:24]} 83. Be6+ {[%clk 0:00:08]}  Kf8 {[%clk 0:00:25]} 84. Rh8# {[%clk 0:00:08]} 1-0


[Site "https://www.chess.com"]

[Event "Titled Tuesday Blitz July 20 2021"]
[White "Wagner, Dennis"]
[Black "Vukovic, Zdravko"]
[WhiteFideId "24650684"]
[BlackFideId "900877"]
[WhiteElo "2355"]
[BlackElo "2603"]
[Result "1-0"]
[Round "11"]
[TimeControl "180+1"]
[Date "2021.07.20"]
[WhiteClock "0:00:10"]
[BlackClock "0:00:20"]

1. c4 {[%clk 0:03:00]}  e6 {[%clk 0:02:59]} 2. g3 {[%clk 0:02:57]}  d5 {[%clk 0:02:59]} 3. Bg2 {[%clk 0:02:56]}  Nf6 {[%clk 0:03:00]} 4. Nf3 {[%clk 0:02:55]}  dxc4 {[%clk 0:03:00]} 5. Qa4+ {[%clk 0:02:54]}  Bd7 {[%clk 0:02:59]} 6. Qxc4 {[%clk 0:02:55]}  Nc6 {[%clk 0:03:00]} 7. O-O {[%clk 0:02:51]}  Bd6 {[%clk 0:03:00]} 8. d4 {[%clk 0:02:50]}  O-O {[%clk 0:03:00]} 9. Rd1 {[%clk 0:02:46]}  a6 {[%clk 0:02:49]} 10. a3 {[%clk 0:02:37]}  Qe7 {[%clk 0:02:47]} 11. Bg5 {[%clk 0:02:31]}  h6 {[%clk 0:02:47]} 12. Bxf6 {[%clk 0:02:31]}  Qxf6 {[%clk 0:02:47]} 13. Nc3 {[%clk 0:02:24]}  e5 {[%clk 0:02:30]} 14. dxe5 {[%clk 0:02:14]}  Nxe5 {[%clk 0:02:30]} 15. Nxe5 {[%clk 0:02:15]}  Qxe5 {[%clk 0:02:30]} 16. Bxb7 {[%clk 0:02:10]}  Rab8 {[%clk 0:02:25]} 17. Qxa6 {[%clk 0:02:07]}  Bg4 {[%clk 0:02:18]} 18. Rd2 {[%clk 0:02:04]}  Be6 {[%clk 0:02:11]} 19. Rc1 {[%clk 0:01:57]}  Rfd8 {[%clk 0:01:59]} 20. Bg2 {[%clk 0:01:16]}  Rb3 {[%clk 0:01:46]} 21. Qa4 {[%clk 0:00:54]}  Rdb8 {[%clk 0:01:42]} 22. Rcc2 {[%clk 0:00:34]}  Bxa3 {[%clk 0:01:22]} 23. bxa3 {[%clk 0:00:16]}  Rxc3 {[%clk 0:01:22]} 24. h3 {[%clk 0:00:12]}  Rxc2 {[%clk 0:01:12]} 25. Qxc2 {[%clk 0:00:11]}  Qa1+ {[%clk 0:00:57]} 26. Kh2 {[%clk 0:00:10]}  Qxa3 {[%clk 0:00:57]} 27. Qxc7 {[%clk 0:00:10]}  Qb4 {[%clk 0:00:55]} 28. Rd8+ {[%clk 0:00:10]}  Rxd8 {[%clk 0:00:54]} 29. Qxd8+ {[%clk 0:00:11]}  Kh7 {[%clk 0:00:55]} 30. Qd3+ {[%clk 0:00:12]}  g6 {[%clk 0:00:55]} 31. h4 {[%clk 0:00:12]}  h5 {[%clk 0:00:54]} 32. Be4 {[%clk 0:00:11]}  Qb2 {[%clk 0:00:52]} 33. Qf3 {[%clk 0:00:11]}  Kg7 {[%clk 0:00:51]} 34. Bd3 {[%clk 0:00:12]}  Qd4 {[%clk 0:00:51]} 35. Qf4 {[%clk 0:00:12]}  Qxf4 {[%clk 0:00:50]} 36. gxf4 {[%clk 0:00:12]}  Bd5 {[%clk 0:00:50]} 37. Kg3 {[%clk 0:00:13]}  Kf6 {[%clk 0:00:50]} 38. e4 {[%clk 0:00:12]}  Bb3 {[%clk 0:00:49]} 39. Kf3 {[%clk 0:00:12]}  Bd1+ {[%clk 0:00:49]} 40. Ke3 {[%clk 0:00:13]}  Bg4 {[%clk 0:00:49]} 41. Kd4 {[%clk 0:00:13]}  Bd7 {[%clk 0:00:47]} 42. Kd5 {[%clk 0:00:13]}  Ke7 {[%clk 0:00:46]} 43. e5 {[%clk 0:00:08]}  Be6+ {[%clk 0:00:45]} 44. Kd4 {[%clk 0:00:08]}  Bd7 {[%clk 0:00:43]} 45. Bc4 {[%clk 0:00:08]}  Bf5 {[%clk 0:00:43]} 46. Bd5 {[%clk 0:00:09]}  Bd7 {[%clk 0:00:42]} 47. Be4 {[%clk 0:00:09]}  Be6 {[%clk 0:00:42]} 48. Ke3 {[%clk 0:00:09]}  Bd7 {[%clk 0:00:42]} 49. Bd3 {[%clk 0:00:10]}  Be6 {[%clk 0:00:42]} 50. f5 {[%clk 0:00:09]}  gxf5 {[%clk 0:00:41]} 51. Kf4 {[%clk 0:00:09]}  f6 {[%clk 0:00:42]} 52. Bxf5 {[%clk 0:00:09]}  fxe5+ {[%clk 0:00:42]} 53. Kxe5 {[%clk 0:00:10]}  Bf7 {[%clk 0:00:25]} 54. Be4 {[%clk 0:00:08]}  Be8 {[%clk 0:00:23]} 55. Kf5 {[%clk 0:00:09]}  Kf7 {[%clk 0:00:19]} 56. Kg5 {[%clk 0:00:09]}  Kg7 {[%clk 0:00:20]} 57. Bf3 {[%clk 0:00:09]}  Bd7 {[%clk 0:00:20]} 58. Bxh5 {[%clk 0:00:10]} 1-0


[Site "https://www.chess.com"]

[Event "Titled Tuesday Blitz July 20 2021"]
[White "Zherebtsova, Alexandra"]
[Black "Tronenkovs, Valdis"]
[WhiteFideId "24129518"]
[BlackFideId "11601558"]
[WhiteElo "2025"]
[BlackElo "2232"]
[Result "1-0"]
[Round "11"]
[TimeControl "180+1"]
[Date "2021.07.21"]
[WhiteClock "0:00:10"]
[BlackClock "0:00:01"]

1. d4 {[%clk 0:03:00]}  Nf6 {[%clk 0:02:59]} 2. Nf3 {[%clk 0:03:00]}  e6 {[%clk 0:02:59]} 3. g3 {[%clk 0:02:59]}  d5 {[%clk 0:02:58]} 4. Bg2 {[%clk 0:02:57]}  Be7 {[%clk 0:02:59]} 5. c4 {[%clk 0:02:56]}  O-O {[%clk 0:02:58]} 6. O-O {[%clk 0:02:55]}  Nbd7 {[%clk 0:02:59]} 7. Qc2 {[%clk 0:02:54]}  c6 {[%clk 0:02:59]} 8. b3 {[%clk 0:02:45]}  b6 {[%clk 0:02:59]} 9. Nc3 {[%clk 0:02:42]}  Ba6 {[%clk 0:02:57]} 10. Rd1 {[%clk 0:02:37]}  dxc4 {[%clk 0:02:57]} 11. Ne5 {[%clk 0:02:29]}  Nxe5 {[%clk 0:02:40]} 12. dxe5 {[%clk 0:02:28]}  Nd5 {[%clk 0:02:40]} 13. bxc4 {[%clk 0:01:21]}  Bxc4 {[%clk 0:02:41]} 14. Ne4 {[%clk 0:01:20]}  Nb4 {[%clk 0:01:59]} 15. Qa4 {[%clk 0:01:20]}  b5 {[%clk 0:01:59]} 16. Rxd8 {[%clk 0:01:04]}  bxa4 {[%clk 0:01:59]} 17. Rxa8 {[%clk 0:00:50]}  Rxa8 {[%clk 0:01:58]} 18. Nd6 {[%clk 0:00:40]}  Bxe2 {[%clk 0:01:32]} 19. Bd2 {[%clk 0:00:27]}  Rb8 {[%clk 0:01:01]} 20. Rb1 {[%clk 0:00:21]}  Na6 {[%clk 0:01:00]} 21. Rc1 {[%clk 0:00:18]}  Rb2 {[%clk 0:00:41]} 22. Be3 {[%clk 0:00:18]}  Nb4 {[%clk 0:00:17]} 23. a3 {[%clk 0:00:15]}  Nd3 {[%clk 0:00:10]} 24. Ra1 {[%clk 0:00:13]}  c5 {[%clk 0:00:07]} 25. Nc4 {[%clk 0:00:12]}  Rb3 {[%clk 0:00:03]} 26. h4 {[%clk 0:00:11]}  h6 {[%clk 0:00:03]} 27. Na5 {[%clk 0:00:09]}  Rb5 {[%clk 0:00:02]} 28. Nc6 {[%clk 0:00:09]}  Bf8 {[%clk 0:00:03]} 29. Nxa7 {[%clk 0:00:10]}  Rb2 {[%clk 0:00:01]} 30. Nc6 {[%clk 0:00:10]} 1-0


[Site "https://www.chess.com"]